bitfinex-derivatives/quotes_BTCF0:USTF0_20250424
["timestamp","ask_amount","ask_price","bid_price","bid_amount"]
[1745470741398,0.34545,92787.0,92786.0,0.140651]
[1745470741710,0.34745,92787.0,92786.0,0.140651]
[1745470742514,0.34545,92787.0,92786.0,0.140651]
[1745470742808,0.34645,92787.0,92786.0,0.140651]
[1745470743309,0.34545,92787.0,92786.0,0.140651]
[1745470743509,0.34645,92787.0,92786.0,0.140651]
[1745470744110,0.34545,92787.0,92786.0,0.140651]
[1745470744408,0.34645,92787.0,92786.0,0.140651]
[1745470748610,0.28175,92787.0,92786.0,0.140651]
[1745470753207,0.31355,92787.0,92786.0,0.140651]
[1745470758821,0.28175,92787.0,92786.0,0.140651]
[1745470762021,0.28075,92787.0,92786.0,0.140651]
[1745470762222,0.28075,92787.0,92786.0,0.141651]
[1745470762523,0.27975,92787.0,92786.0,0.142651]
[1745470765214,0.27975,92787.0,92786.0,0.141651]
[1745470765718,0.27975,92787.0,92786.0,0.140651]
[1745470765921,0.27975,92787.0,92786.0,0.141651]
[1745470767121,0.27975,92787.0,92786.0,0.142651]
[1745470767623,0.27975,92787.0,92786.0,0.141651]
[1745470802546,0.27975,92787.0,92786.0,0.140651]
[1745470828770,0.27975,92787.0,92786.0,0.501451]
[1745470828771,0.172,92787.0,92786.0,0.501451]
[1745470828974,0.1,92800.0,92799.0,0.107736]
[1745470829377,0.13742898,92810.0,92801.0,0.1077337]
[1745470829573,0.1077274,92807.0,92801.0,0.1077337]
[1745470829774,0.0538631,92808.0,92801.0,0.1077337]
[1745470830074,0.13742898,92810.0,92801.0,0.1735337]
[1745470830275,0.13742898,92812.0,92811.0,0.1077221]
[1745470830872,0.13742898,92812.0,92811.0,0.1403221]
[1745470832476,0.14042898,92812.0,92811.0,0.1403221]
[1745470832779,0.14342898,92812.0,92811.0,0.1403221]
[1745470833163,0.31342898,92812.0,92811.0,0.1403221]
[1745470833764,0.31142898,92812.0,92811.0,0.1403221]
[1745470835079,0.174,92812.0,92811.0,0.1403221]
[1745470835461,0.2817209,92812.0,92811.0,0.1403221]
[1745470837675,0.174,92812.0,92811.0,0.1403221]
[1745470841576,0.174,92812.0,92811.0,0.1727221]
[1745470842172,0.002,92812.0,92811.0,0.1727221]
[1745470846077,0.172,92816.0,92811.0,0.1727221]
[1745470846078,0.0737082,92816.0,92815.0,0.1077175]
[1745470846381,0.0011,92817.0,92816.0,0.1077163]
[1745470846976,0.0011,92817.0,92816.0,0.1406163]
[1745470847989,0.0031,92817.0,92816.0,0.1406163]
[1745470848579,0.0051,92817.0,92816.0,0.1406163]
[1745470850177,0.1771,92817.0,92816.0,0.1406163]
[1745470852675,0.1457259,92817.0,92816.0,0.24835629]
[1745470852880,0.0052,92824.0,92816.0,0.24835629]
[1745470852881,0.0052,92824.0,92823.0,0.1077082]
[1745470853080,0.0052,92824.0,92823.0,0.4685082]
[1745470853280,1e-07,92824.0,92823.0,0.5762402]
[1745470853590,1e-07,92824.0,92823.0,0.7121002]
[1745470854677,0.0010001,92824.0,92823.0,0.7121002]
[1745470855989,1e-07,92824.0,92823.0,0.7121002]
[1745470865101,1e-07,92824.0,92823.0,0.6043682]
[1745470865299,1e-07,92824.0,92823.0,0.5000082]
[1745470865489,0.0949001,92824.0,92823.0,0.5000082]
[1745470866194,0.2669001,92824.0,92823.0,0.5000082]
[1745470870896,0.2669001,92824.0,92823.0,0.5320082]
[1745470871093,0.1720001,92824.0,92823.0,0.5320082]
[1745470871395,0.1720001,92824.0,92823.0,0.5636082]
[1745470872181,1e-07,92824.0,92823.0,0.5636082]
[1745470872785,1e-07,92824.0,92823.0,0.6713402]
[1745470873788,0.0944,92840.0,92839.0,0.1076896]
[1745470874793,0.0944,92840.0,92839.0,0.1378896]
[1745470875299,0.2694,92840.0,92839.0,0.1378896]
[1745470875596,0.2714,92840.0,92839.0,0.1378896]
[1745470879698,0.2714,92840.0,92839.0,0.14876076]
[1745470886603,0.2411,92840.0,92839.0,0.14876076]
[1745470886999,0.177,92840.0,92839.0,0.14876076]
[1745470888204,0.005,92840.0,92839.0,0.14876076]
[1745470888402,0.004,92840.0,92839.0,0.14876076]
[1745470889100,0.003,92840.0,92839.0,0.14876076]
[1745470889292,0.0011,92847.0,92846.0,0.1076815]
[1745470889494,0.0011,92847.0,92846.0,0.4684815]
[1745470890203,0.0011,92847.0,92846.0,0.5331815]
[1745470890593,0.0031,92847.0,92846.0,0.5331815]
[1745470891199,0.0051,92847.0,92846.0,0.5331815]
[1745470891603,0.0051,92847.0,92846.0,0.54398198]
[1745470892100,0.0051,92847.0,92846.0,0.61522198]
[1745470893198,0.0051,92847.0,92846.0,0.61529481]
[1745470897001,0.0051,92847.0,92846.0,0.6044215]
[1745470897599,0.0051,92847.0,92846.0,0.61533847]
[1745470898704,0.0051,92847.0,92846.0,0.6044215]
[1745470899211,0.0051,92847.0,92846.0,0.61536448]
[1745470899408,0.0051,92847.0,92846.0,0.6044215]
[1745470899897,0.0051,92847.0,92846.0,0.61536642]
[1745470900302,0.0052,92872.0,92871.0,0.1076525]
[1745470900503,0.0052,92872.0,92871.0,0.11862002]
[1745470900812,0.0029,92872.0,92871.0,0.11862002]
[1745470901210,0.1749,92872.0,92871.0,0.11862002]
[1745470901511,0.1789,92872.0,92871.0,0.16289561]
[1745470901712,0.2905513,92872.0,92871.0,0.16289561]
[1745470901905,0.3551513,92872.0,92871.0,0.15192809]
[1745470902102,0.3511513,92872.0,92871.0,0.1629907]
[1745470902408,0.1819,92872.0,92871.0,0.15192809]
[1745470902610,0.1819,92872.0,92871.0,0.16291492]
[1745470903011,0.1799,92872.0,92871.0,0.16291492]
[1745470903426,0.1799,92872.0,92871.0,0.15192809]
[1745470904611,0.1799,92872.0,92871.0,0.16278314]
[1745470907015,0.1799,92872.0,92871.0,0.15180755]
[1745470907517,0.2875513,92872.0,92871.0,0.01085505]
[1745470908417,0.3179513,92872.0,92871.0,0.01085505]
[1745470908909,0.3179513,92872.0,92859.0,0.3608]
[1745470908910,0.1076653,92860.0,92859.0,0.3608]
[1745470909111,0.1076653,92860.0,92859.0,0.37164145]
[1745470909313,0.1076653,92860.0,92859.0,0.47930745]
[1745470909816,0.1723653,92860.0,92859.0,0.47930745]
[1745470910207,0.3443653,92860.0,92859.0,0.48030745]
[1745470911417,0.3443653,92860.0,92859.0,0.48130745]
[1745470914009,0.3443653,92860.0,92859.0,0.51170745]
[1745470915824,0.3443653,92860.0,92859.0,0.54270745]
[1745470918526,0.3443653,92860.0,92859.0,0.531866]
[1745470919826,0.2367,92860.0,92859.0,0.531866]
[1745470922017,0.172,92860.0,92859.0,0.531866]
[1745470926138,0.2796653,92860.0,92859.0,0.531866]
[1745470926724,0.172,92860.0,92859.0,0.531866]
[1745470926931,0.2359,92860.0,92859.0,0.531866]
[1745470929232,0.3435653,92860.0,92859.0,0.531866]
[1745470929535,0.2359,92860.0,92859.0,0.531866]
[1745470930433,0.3435653,92860.0,92859.0,0.531866]
[1745470930636,0.3435653,92860.0,92859.0,0.500866]
[1745470931637,0.2359,92860.0,92859.0,0.500866]
[1745470931829,0.2359,92860.0,92859.0,0.533466]
[1745470933142,0.3435653,92860.0,92859.0,0.533466]
[1745470933532,0.172,92860.0,92859.0,0.533466]
[1745470935138,0.1076483,92875.0,92871.0,0.1076525]
[1745470935339,0.1076492,92874.0,92871.0,0.1076525]
[1745470935539,0.1076485,92875.0,92871.0,0.1717525]
[1745470935740,0.1087461,92877.0,92871.0,0.1717525]
[1745470936136,0.1749,92872.0,92871.0,0.1717525]
[1745470936341,0.1769,92872.0,92871.0,0.1717525]
[1745470936650,0.1779,92872.0,92871.0,0.1717525]
[1745470942253,0.0059,92872.0,92871.0,0.1717525]
[1745470943548,1e-07,92872.0,92871.0,0.1717525]
[1745470943951,0.0011,92877.0,92876.0,0.1076467]
[1745470944152,0.0011,92877.0,92876.0,0.4684467]
[1745470944854,0.0011,92877.0,92876.0,0.5302467]
[1745470945350,0.0011,92877.0,92876.0,0.5312467]
[1745470945552,0.0011,92877.0,92876.0,0.5322467]
[1745470946149,0.1731,92877.0,92876.0,0.5322467]
[1745470949153,0.0011,92877.0,92876.0,0.5322467]
[1745470949753,0.0648,92891.0,92876.0,0.5322467]
[1745470949754,0.3608,92895.0,92876.0,0.5322467]
[1745470949950,0.3808,92895.0,92894.0,0.1076258]
[1745470950152,0.5528,92895.0,92894.0,0.1076258]
[1745470951355,0.5548,92895.0,92894.0,0.1076258]
[1745470951556,0.5548,92895.0,92894.0,0.1408258]
[1745470951749,0.5568,92895.0,92894.0,0.1408258]
[1745470953859,0.5548,92895.0,92894.0,0.1418258]
[1745470954258,0.5528,92895.0,92894.0,0.1428258]
[1745470954651,0.5528,92895.0,92894.0,0.15353087]
[1745470956460,0.5528,92895.0,92894.0,0.1428258]
[1745470962961,0.6604247,92895.0,92894.0,0.1428258]
[1745470963167,0.6604247,92895.0,92894.0,0.002]
[1745470963360,0.1076374,92884.0,92883.0,0.2324537]
[1745470963553,0.1076374,92884.0,92883.0,0.071]
[1745470963959,0.1698374,92884.0,92883.0,0.071]
[1745470964264,0.3418374,92884.0,92883.0,0.1786386]
[1745470964661,0.3418374,92884.0,92883.0,0.1076386]
[1745470965371,0.3418374,92884.0,92883.0,0.002]
[1745470965670,0.2342,92884.0,92883.0,0.1096386]
[1745470966054,0.2342,92884.0,92883.0,0.1086386]
[1745470967465,0.2342,92884.0,92883.0,0.1387386]
[1745470968369,0.172,92884.0,92883.0,0.1387386]
[1745470969471,0.172,92884.0,92883.0,0.1717386]
[1745470987087,0.172,92884.0,92883.0,0.1416386]
[1745470987887,0.2351,92884.0,92883.0,0.1416386]
[1745470989382,0.3427374,92884.0,92883.0,0.1416386]
[1745470989777,0.2351,92884.0,92883.0,0.1416386]
[1745470989978,0.2351,92884.0,92883.0,0.1724386]
[1745470992983,0.3427374,92884.0,92883.0,0.1724386]
[1745470993886,0.3427374,92884.0,92883.0,0.1416386]
[1745470994082,0.2351,92884.0,92883.0,0.1416386]
[1745470996588,0.2351,92884.0,92883.0,0.1737386]
[1745471001791,0.172,92884.0,92883.0,0.1737386]
[1745471004785,0.09465,92884.0,92883.0,0.5345386]
[1745471005182,0.10943627,92896.0,92895.0,0.1076247]
[1745471005391,0.12943627,92896.0,92895.0,0.1076247]
[1745471005983,0.12943627,92896.0,92895.0,0.1722247]
[1745471006189,0.30143627,92896.0,92895.0,0.1722247]
[1745471006390,0.192,92896.0,92895.0,0.1722247]
[1745471006594,0.193,92896.0,92895.0,0.1722247]
[1745471007095,0.194,92896.0,92895.0,0.1722247]
[1745471007793,0.193,92896.0,92895.0,0.1732247]
[1745471008496,0.193,92896.0,92895.0,0.17304513]
[1745471008695,0.192,92896.0,92895.0,0.17304513]
[1745471012994,0.2996235,92896.0,92895.0,0.0333]
[1745471013199,0.2996235,92896.0,92895.0,0.001]
[1745471013398,0.40727151,92896.0,92895.0,0.001]
[1745471013991,0.40727151,92896.0,92895.0,0.1086247]
[1745471014192,0.40727151,92896.0,92895.0,0.1401247]
[1745471015597,0.40727151,92896.0,92895.0,0.001]
[1745471016193,0.76807151,92896.0,92895.0,0.001]
[1745471016601,0.91044801,92896.0,92877.0,0.0538226]
[1745471016789,0.91044801,92896.0,92871.0,0.0631]
[1745471016790,0.1076513,92872.0,92871.0,0.0631]
[1745471016990,0.1076513,92872.0,92871.0,0.1707525]
[1745471017300,0.2796513,92872.0,92871.0,0.1707525]
[1745471017890,0.2796513,92872.0,92871.0,0.1767525]
[1745471018990,0.3102513,92872.0,92871.0,0.1827525]
[1745471020204,0.2796513,92872.0,92871.0,0.1827525]
[1745471024012,0.2796513,92872.0,92871.0,0.1857525]
[1745471024807,0.2796513,92872.0,92871.0,0.1827525]
[1745471027818,0.2796513,92872.0,92871.0,0.1767525]
[1745471032919,0.172,92872.0,92871.0,0.1767525]
[1745471033218,0.172,92873.0,92872.0,0.1076513]
[1745471033418,0.172,92873.0,92872.0,0.1695513]
[1745471034207,0.172,92873.0,92872.0,0.1725513]
[1745471034410,0.172,92873.0,92872.0,0.1755513]
[1745471036320,0.3608,92883.0,92882.0,0.1076397]
[1745471037125,0.5328,92883.0,92882.0,0.1076397]
[1745471037312,0.5328,92883.0,92882.0,0.1728397]
[1745471037513,0.5328,92883.0,92882.0,0.1738397]
[1745471040718,0.172,92883.0,92882.0,0.1738397]
[1745471041933,0.172,92883.0,92882.0,0.0352]
[1745471042116,0.2796386,92883.0,92882.0,0.1428397]
[1745471042315,0.2796386,92883.0,92882.0,0.0352]
[1745471042522,0.2796386,92883.0,92882.0,0.1428397]
[1745471042720,0.3436386,92883.0,92882.0,0.1428397]
[1745471042915,0.236,92883.0,92882.0,0.1428397]
[1745471043325,0.3436386,92883.0,92882.0,0.1428397]
[1745471053025,0.3436386,92883.0,92882.0,0.002]
[1745471053426,0.3436386,92883.0,92882.0,0.1096397]
[1745471054024,0.45130261,92883.0,92882.0,0.002]
[1745471056029,0.45130261,92883.0,92882.0,0.1096397]
[1745471059127,0.3436386,92883.0,92882.0,0.002]
[1745471060234,0.3436386,92883.0,92882.0,0.1096397]
[1745471063529,0.3436386,92883.0,92882.0,0.1725397]
[1745471066138,0.7044386,92883.0,92882.0,0.1725397]
[1745471066335,0.7044386,92883.0,92882.0,0.0649]
[1745471067330,0.7044386,92883.0,92882.0,0.1725397]
[1745471068236,0.3436386,92883.0,92882.0,0.1725397]
[1745471068542,0.7044386,92883.0,92882.0,0.1725397]
[1745471068739,0.6711386,92883.0,92882.0,0.1725397]
[1745471069533,0.6404386,92883.0,92882.0,0.1725397]
[1745471070142,0.5328,92883.0,92882.0,0.1725397]
[1745471070340,0.172,92883.0,92882.0,0.1725397]
[1745471071241,0.0538167,92888.0,92887.0,0.1614464]
[1745471072351,0.0548167,92888.0,92887.0,0.1614464]
[1745471072833,0.0548167,92888.0,92887.0,0.2152623]
[1745471073032,0.0558167,92888.0,92887.0,0.2152623]
[1745471073233,0.2278167,92888.0,92887.0,0.2152623]
[1745471074449,0.2268167,92888.0,92887.0,0.2152623]
[1745471074650,0.2268167,92888.0,92887.0,0.2172623]
[1745471075549,0.2258167,92888.0,92887.0,0.2192623]
[1745471076751,0.2458167,92888.0,92887.0,0.2192623]
[1745471082153,0.2458167,92888.0,92887.0,0.004]
[1745471082343,0.1076548,92869.0,92868.0,0.17230629]
[1745471082542,0.1076548,92869.0,92868.0,0.1614792]
[1745471082958,0.1076548,92869.0,92868.0,0.1724167]
[1745471083153,0.1076595,92865.0,92848.0,0.0538394]
[1745471083346,0.4684595,92865.0,92855.0,0.1076705]
[1745471083543,0.4684595,92865.0,92858.0,0.0319]
[1745471083850,0.1076606,92864.0,92863.0,0.16392853]
[1745471084052,0.1716606,92864.0,92863.0,0.16392853]
[1745471085058,0.1076687,92857.0,92856.0,0.21857138]
[1745471085353,0.4684687,92857.0,92856.0,0.21857138]
[1745471086153,0.7030687,92857.0,92856.0,0.21857138]
[1745471086356,0.71120044,92857.0,92856.0,0.21857138]
[1745471087358,0.71320044,92857.0,92856.0,0.21857138]
[1745471087557,0.71420044,92857.0,92856.0,0.21857138]
[1745471087857,0.1076745,92852.0,92851.0,0.1076755]
[1745471088155,0.2796745,92852.0,92851.0,0.1076755]
[1745471090956,0.2796745,92852.0,92851.0,0.1086755]
[1745471091147,0.2796745,92852.0,92851.0,0.1096755]
[1745471092446,0.172,92852.0,92851.0,0.1096755]
[1745471093149,0.0546735,92859.0,92856.0,0.1076699]
[1745471093349,0.1623411,92859.0,92858.0,0.1076676]
[1745471093549,0.1615011,92859.0,92858.0,0.1076676]
[1745471093750,0.1615011,92859.0,92858.0,0.1393676]
[1745471094161,0.2258335,92859.0,92858.0,0.1393676]
[1745471094761,0.2268335,92859.0,92858.0,0.1393676]
[1745471094960,0.173,92859.0,92858.0,0.1393676]
[1745471095350,0.173,92859.0,92858.0,0.1697676]
[1745471096463,0.2806664,92859.0,92858.0,0.1697676]
[1745471099874,0.2806664,92859.0,92858.0,0.1697676]
[1745471109487,0.2806664,92859.0,92858.0,0.0304]
[1745471110085,0.3445664,92859.0,92858.0,0.0304]
[1745471110495,0.3445664,92859.0,92858.0,0.1380676]
[1745471111788,0.3445664,92859.0,92858.0,0.0304]
[1745471112183,0.3445664,92859.0,89307.0,1.3811]
[1745471112184,0.1076792,92848.0,92841.0,0.4146434]
[1745471112384,0.1076792,92848.0,92847.0,0.1378803]
[1745471113193,0.2796792,92848.0,92847.0,0.1378803]
[1745471113388,0.2796792,92848.0,92847.0,0.1750803]
[1745471113884,0.2796792,92848.0,92847.0,0.0372]
[1745471114487,0.2796792,92848.0,92847.0,0.0352]
[1745471115487,0.2796792,92848.0,92847.0,0.0332]
[1745471115684,0.2796792,92848.0,92847.0,0.0342]
[1745471115886,0.2796792,92848.0,92847.0,0.1418803]
[1745471116280,0.2796792,92848.0,92847.0,0.1408803]
[1745471116478,0.2796792,92848.0,92847.0,0.1418803]
[1745471116989,0.2796792,92848.0,92847.0,0.0342]
[1745471117901,0.2796792,92848.0,92847.0,0.1418803]
[1745471119789,0.2796792,92848.0,92847.0,0.0342]
[1745471120589,0.2796792,92848.0,92847.0,0.1418803]
[1745471125297,0.2796792,92848.0,92847.0,0.1731803]
[1745471129395,0.172,92848.0,92847.0,0.1731803]
[1745471130197,0.4684765,92851.0,92850.0,0.1076768]
[1745471131202,0.6404765,92851.0,92850.0,0.1076768]
[1745471132087,0.5328,92851.0,92850.0,0.1076768]
[1745471132292,0.3608,92851.0,92850.0,0.1076768]
[1745471133496,0.4684757,92851.0,92850.0,0.1096768]
[1745471133690,0.4684757,92851.0,92850.0,0.1116768]
[1745471141301,0.1076757,92851.0,92850.0,0.1116768]
[1745471145105,0.2796757,92851.0,92850.0,0.1116768]
[1745471149112,0.1076757,92851.0,92850.0,0.1116768]
[1745471150111,0.2796757,92851.0,92850.0,0.1116768]
[1745471153813,0.172,92851.0,92850.0,0.1116768]
[1745471154112,0.00084,92856.0,92855.0,0.107671]
[1745471154412,0.0538307,92864.0,92863.0,0.1076618]
[1745471155112,0.2258307,92864.0,92863.0,0.1076618]
[1745471155311,0.172,92864.0,92863.0,0.2011618]
[1745471155613,0.172,92864.0,92863.0,0.3088458]
[1745471155614,0.173,92864.0,92863.0,0.3088458]
[1745471155914,0.00084,92867.0,92866.0,0.1076583]
[1745471156105,0.00084,92867.0,92866.0,0.1781383]
[1745471156303,0.13742898,92871.0,92870.0,0.1076537]
[1745471156610,0.13742898,92871.0,92870.0,0.4684537]
[1745471156806,0.13742898,92871.0,92870.0,0.8261297]
[1745471157311,0.13742898,92871.0,92870.0,0.9981297]
[1745471158315,0.10997828,92871.0,92870.0,1.0031297]
[1745471158609,8e-08,92871.0,92870.0,1.0031297]
[1745471158815,0.00084,92874.0,92870.0,1.0031297]
[1745471158816,0.00084,92874.0,92873.0,0.1076502]
[1745471159325,0.0319,92890.0,92889.0,0.1076316]
[1745471159610,0.0519,92890.0,92889.0,0.1076316]
[1745471160215,0.2239,92890.0,92889.0,0.1732316]
[1745471160617,0.3315305,92890.0,92889.0,0.1732316]
[1745471161725,0.3315305,92890.0,92889.0,0.6416876]
[1745471161726,0.1017227,92890.0,92889.0,0.6416876]
[1745471161912,0.0946777,92890.0,92889.0,0.65228491]
[1745471162104,0.02,92890.0,92889.0,0.82428491]
[1745471165308,0.02,92890.0,92889.0,0.65228491]
[1745471167016,0.02,92890.0,92889.0,0.54462891]
[1745471167221,0.02,92890.0,92889.0,0.65228491]
[1745471169006,0.0100001,92890.0,92889.0,0.65228491]
[1745471170006,1e-07,92890.0,92889.0,0.65228491]
[1745471170211,0.0100001,92890.0,92889.0,0.65228491]
[1745471172515,1e-07,92890.0,92889.0,0.65228491]
[1745471172914,0.0305,92899.0,92898.0,0.1076212]
[1745471173113,0.0905,92899.0,92898.0,0.1076212]
[1745471173622,0.0905,92899.0,92898.0,0.1702212]
[1745471174116,0.0925,92899.0,92898.0,0.1702212]
[1745471174924,0.0955,92899.0,92898.0,0.1702212]
[1745471175915,0.0945,92899.0,92898.0,0.1702212]
[1745471176124,0.0319,92908.0,92899.0,0.1076201]
[1745471176318,0.17,92900.0,92899.0,0.2038201]
[1745471177524,0.171,92900.0,92899.0,0.2038201]
[1745471177920,0.171,92900.0,92899.0,0.22656507]
[1745471180321,0.0321,92915.0,92906.0,0.1076119]
[1745471180525,0.2411,92907.0,92906.0,0.49115687]
[1745471181029,0.2411,92907.0,92906.0,0.47925123]
[1745471181326,0.2014096,92907.0,92906.0,0.54347106]
[1745471182218,0.0736252,92907.0,92906.0,0.54347106]
[1745471182417,0.0052,92920.0,92906.0,0.54347106]
[1745471182418,0.0333,92919.0,92918.0,0.107598]
[1745471182620,0.3233,92919.0,92918.0,0.11835716]
[1745471183018,0.3551,92919.0,92918.0,0.19380448]
[1745471183220,0.5271,92919.0,92918.0,0.19380448]
[1745471184329,0.5281,92919.0,92918.0,0.16180448]
[1745471184818,0.5281,92919.0,92918.0,0.16197967]
[1745471185924,0.5281,92919.0,92918.0,0.14991691]
[1745471187521,0.4473631,92919.0,92918.0,0.14991691]
[1745471187722,0.0625,92936.0,92935.0,0.1075784]
[1745471187921,0.2200772,92936.0,92935.0,0.11869731]
[1745471188121,0.3920772,92936.0,92935.0,0.11869731]
[1745471188323,0.2845,92936.0,92935.0,0.11869731]
[1745471188528,0.2845,92936.0,92935.0,0.11830471]
[1745471189025,0.3920772,92936.0,92935.0,0.1183047]
[1745471189419,0.2845,92936.0,92935.0,0.1183047]
[1745471189822,0.3930772,92936.0,92935.0,0.1183047]
[1745471190525,0.3920772,92936.0,92935.0,0.1183047]
[1745471190727,0.3173,92936.0,92935.0,0.1183047]
[1745471192624,0.3173,92936.0,92935.0,0.1489047]
[1745471193160,0.3173,92936.0,92935.0,0.1381784]
[1745471193927,0.3173,92936.0,92935.0,0.01054105]
[1745471194132,0.4248772,92936.0,92935.0,0.01054105]
[1745471194728,0.4248772,92936.0,92865.0,0.4156]
[1745471194729,0.6749,92936.0,92865.0,0.4156]
[1745471194930,0.0538046,92909.0,92908.0,0.1076096]
[1745471195133,0.222,92909.0,92908.0,0.1076096]
[1745471196133,0.222,92909.0,92908.0,0.2391696]
[1745471196435,0.222,92909.0,92908.0,0.5999696]
[1745471196935,0.222,92909.0,92908.0,0.6049696]
[1745471197735,0.222,92909.0,92908.0,0.6099696]
[1745471199242,0.222,92909.0,92908.0,0.6049696]
[1745471199451,0.222,92909.0,92908.0,0.6109696]
[1745471199632,0.222,92909.0,92908.0,0.6059696]
[1745471199821,0.222,92909.0,92908.0,0.6099696]
[1745471200026,0.222,92909.0,92908.0,0.6039696]
[1745471200226,0.222,92909.0,92908.0,0.6089696]
[1745471202232,0.222,92909.0,92908.0,0.5787696]
[1745471203320,0.2865,92909.0,92908.0,0.5787696]
[1745471203735,0.2865,92909.0,92908.0,0.5747696]
[1745471203928,0.2865,92909.0,92908.0,0.5044096]
[1745471204928,0.3941085,92909.0,92908.0,0.5044096]
[1745471205128,0.7549085,92909.0,92908.0,0.1126096]
[1745471205325,0.7549085,92909.0,92908.0,0.1106096]
[1745471205537,0.7549085,92909.0,92908.0,0.1136096]
[1745471205937,0.7549085,92909.0,92908.0,0.003]
[1745471206238,0.1614308,92901.0,92900.0,0.1076146]
[1745471206436,0.2014308,92901.0,92900.0,0.11812862]
[1745471207137,0.3734308,92901.0,92900.0,0.12870517]
[1745471208442,0.3734308,92901.0,92900.0,0.13070517]
[1745471208739,0.3734308,92901.0,92900.0,0.13170517]
[1745471209140,0.3734308,92901.0,92900.0,0.12970517]
[1745471209342,0.3734308,92901.0,92900.0,0.13070517]
[1745471209741,0.3734308,92901.0,92900.0,0.12019115]
[1745471209957,0.4810748,92901.0,92900.0,0.01257655]
[1745471210242,0.85010055,92901.0,92900.0,0.02820617]
[1745471210841,0.85010055,92901.0,92900.0,0.13582507]
[1745471212336,0.85010055,92901.0,92900.0,0.13382507]
[1745471212737,0.85010055,92901.0,92900.0,0.11819545]
[1745471214839,0.85110055,92901.0,92900.0,0.11819545]
[1745471215042,0.74345655,92901.0,92900.0,0.11819545]
[1745471216044,0.1076305,92890.0,92889.0,0.10924627]
[1745471216245,0.4884305,92890.0,92889.0,0.10924627]
[1745471216835,0.5530305,92890.0,92889.0,0.10924627]
[1745471217037,0.1076455,92877.0,92876.0,0.0010767]
[1745471217839,0.1076455,92877.0,92876.0,0.1087227]
[1745471218235,0.2796455,92877.0,92876.0,0.1087227]
[1745471218842,0.2796455,92877.0,92876.0,0.1196325]
[1745471219040,0.2796455,92877.0,92876.0,0.1868325]
[1745471219350,0.2796455,92877.0,92876.0,0.1908325]
[1745471223846,0.172,92877.0,92876.0,0.1908325]
[1745471226244,0.2796455,92877.0,92876.0,0.1908325]
[1745471226447,0.172,92877.0,92876.0,0.1908325]
[1745471228145,0.172,92877.0,92876.0,0.20140367]
[1745471229145,0.172,92877.0,92876.0,0.1908325]
[1745471233254,0.172,92877.0,92876.0,0.20138337]
[1745471234252,0.172,92877.0,92876.0,0.1908325]
[1745471236351,0.15580878,92877.0,92876.0,0.5516325]
[1745471236857,0.15580878,92877.0,92876.0,0.1908325]
[1745471237053,0.15580878,92877.0,92876.0,0.0722767]
[1745471237357,0.26345428,92877.0,92876.0,0.0410767]
[1745471237952,0.26345428,92877.0,92876.0,0.1487234]
[1745471238158,0.32615428,92877.0,92876.0,0.1487234]
[1745471239359,0.15580878,92877.0,92876.0,0.1487234]
[1745471240053,0.15580878,92877.0,92876.0,0.1805234]
[1745471243356,0.15580878,92877.0,92876.0,0.19115974]
[1745471245355,0.15580878,92877.0,92876.0,0.1805234]
[1745471265263,0.26345428,92877.0,92876.0,0.1805234]
[1745471265464,0.15580878,92877.0,92876.0,0.1805234]
[1745471269674,0.18750878,92877.0,92876.0,0.1805234]
[1745471271662,0.29515428,92877.0,92876.0,0.0410767]
[1745471273764,0.29515428,92877.0,92876.0,0.1487234]
[1745471278078,0.65595428,92877.0,92876.0,0.1487234]
[1745471281284,0.65595428,92877.0,92876.0,0.0100767]
[1745471281577,0.1076664,92859.0,92846.0,0.05491765]
[1745471281794,0.1076664,92859.0,92854.0,0.0326]
[1745471281795,0.4684664,92859.0,92854.0,0.0326]
[1745471282173,0.6404664,92859.0,92854.0,0.0326]
[1745471282578,0.7044664,92859.0,92855.0,0.1076702]
[1745471282871,0.7044664,92859.0,92856.0,0.0538348]
[1745471283275,0.7044664,92859.0,92857.0,0.0326]
[1745471283779,0.7044664,92859.0,92858.0,0.27133709]
[1745471283977,0.7044664,92859.0,92858.0,0.16566949]
[1745471284180,0.7044664,92859.0,92858.0,0.002]
[1745471284375,0.7044664,92859.0,92858.0,0.0364]
[1745471286079,0.7044664,92859.0,92858.0,0.004]
[1745471287176,0.1076722,92854.0,92853.0,0.00161511]
[1745471288081,0.3431722,92854.0,92853.0,0.00161511]
[1745471288288,0.1076768,92850.0,92849.0,0.032]
[1745471288474,0.4684768,92850.0,92849.0,0.032]
[1745471288672,0.5761768,92850.0,92849.0,0.032]
[1745471289086,0.8116768,92850.0,92849.0,0.032]
[1745471290275,0.8116768,92850.0,92849.0,0.036]
[1745471290877,0.8116768,92850.0,92849.0,0.039]
[1745471294397,0.8116768,92850.0,92832.0,0.1615398]
[1745471294398,0.704,92850.0,92832.0,0.1615398]
[1745471294590,0.0538448,92840.0,92839.0,0.1391886]
[1745471294779,0.4146448,92840.0,92839.0,0.1391886]
[1745471295286,0.5866448,92840.0,92839.0,0.1391886]
[1745471296578,0.6166448,92840.0,92839.0,0.1391886]
[1745471296780,0.5866448,92840.0,92839.0,0.1391886]
[1745471298085,0.5876448,92840.0,92839.0,0.1471886]
[1745471307696,0.2268448,92840.0,92839.0,0.1471886]
[1745471307897,0.5876448,92840.0,92839.0,0.1471886]
[1745471315901,0.2268448,92840.0,92839.0,0.1471886]
[1745471316109,0.5876448,92840.0,92839.0,0.1471886]
[1745471318812,0.5338,92840.0,92839.0,0.1471886]
[1745471319395,0.5338,92840.0,92839.0,0.2549006]
[1745471320098,0.001,92840.0,92839.0,0.2549006]
[1745471321103,0.001,92840.0,92839.0,0.1471886]
[1745471325094,0.173,92840.0,92839.0,0.1471886]
[1745471325703,0.2806884,92840.0,92839.0,0.1471886]
[1745471325909,0.2806884,92840.0,92839.0,0.008]
[1745471325910,0.6414884,92840.0,92839.0,0.008]
[1745471326695,0.1076966,92833.0,92832.0,0.16366949]
[1745471327102,0.2796966,92833.0,92832.0,0.16366949]
[1745471327304,0.3423966,92833.0,92832.0,0.16366949]
[1745471327903,0.3433966,92833.0,92832.0,0.17066949]
[1745471328412,0.4501166,92833.0,92832.0,0.16566949]
[1745471328703,0.4501166,92833.0,92832.0,0.16866949]
[1745471330214,0.4501166,92833.0,92832.0,0.005]
[1745471333005,0.3423966,92833.0,92832.0,0.005]
[1745471334809,0.3423966,92833.0,92832.0,0.1126977]
[1745471335014,0.3423966,92833.0,92832.0,0.1434977]
[1745471335515,0.3112966,92833.0,92832.0,0.1434977]